bitfinex/quotes_ETHUSD_20240731
["timestamp","ask_amount","ask_price","bid_price","bid_amount"]
[1722456893404,19.73,3252.7,3251.5,3.07549]
[1722456894079,19.73,3252.7,3251.7,3.07525]
[1722456894279,19.73,3252.7,3251.5,3.07545]
[1722456894280,19.73,3252.7,3251.8,0.307525]
[1722456894504,19.73,3252.7,3251.5,3.07543]
[1722456895279,19.73,3252.7,3251.6,0.06148669]
[1722456895513,19.73,3253.5,3252.3,3.07466]
[1722456895691,19.73,3253.4,3252.5,3.07455]
[1722456895896,19.73,3253.4,3252.7,3.07435]
[1722456896120,19.73,3253.4,3252.8,0.31358225]
[1722456896720,19.73,3253.4,3252.9,0.06147007]
[1722456896887,19.73,3253.4,3252.8,0.31358225]
[1722456897083,19.73,3253.4,3252.6,3.07445]
[1722456897288,2.455,3253.8,3252.3,4.5747]
[1722456897289,19.73,3253.7,3252.5,6.149]
[1722456897588,19.73,3253.7,3252.3,4.57468]
[1722456897797,19.73,3253.7,3252.3,1.5]
[1722456897997,19.73,3253.7,3252.0,3.07501]
[1722456898320,19.73,3253.7,3251.8,2.3405]
[1722456898321,2.27997776,3253.6,3251.8,2.3405]
[1722456898480,3.07361,3253.5,3251.8,2.3405]
[1722456898682,0.06147776,3253.4,3251.4,4.57555]
[1722456898926,2.3973,3253.2,3251.4,4.57555]
[1722456899219,2.3973,3253.2,3251.3,2.4813]
[1722456899220,19.73,3253.1,3251.3,2.4813]
[1722456899383,2.28035554,3253.0,3251.4,0.555702]
[1722456899583,2.21887778,3253.0,3251.6,3.07534]
[1722456899781,5.21887778,3253.0,3251.5,3.07549]
[1722456900046,5.28035554,3253.0,3251.4,0.555702]
[1722456900189,3.07429,3252.8,3251.0,7.65591]
[1722456900407,5.28035554,3253.0,3251.0,7.65591]
[1722456900408,3.07503,3252.0,3251.0,3.08]
[1722456900690,3.07503,3252.0,3250.8,0.307626]
[1722456900691,19.73,3251.9,3250.8,0.307626]
[1722456901009,19.73,3251.9,3250.7,3.07624]
[1722456901335,19.73,3251.9,3250.4,1.5]
[1722456901336,19.73,3251.9,3251.1,3.07581]
[1722456901479,19.73,3251.9,3251.2,3.07578]
[1722456901683,19.73,3251.9,3250.8,1.5]
[1722456901963,19.73,3251.9,3250.4,0.32148692]
[1722456902135,19.73,3251.9,3250.5,3.81489969]
[1722456902136,1.973,3251.8,3250.5,3.81489969]
[1722456902464,2.4725,3251.7,3250.5,0.73845969]
[1722456902637,2.4725,3251.7,3250.0,3.08]
[1722456902638,19.73,3251.6,3250.0,3.08]
[1722456902984,0.06147776,3251.5,3250.0,3.08]
[1722456903184,3.0758,3251.2,3249.6,1.5]
[1722456903346,2.4972,3251.0,3249.3,3.07752]
[1722456903698,3.07621,3250.8,3249.1,2.01164811]
[1722456903988,2.5421802,3250.7,3249.2,3.27878481]
[1722456904209,5.6184602,3250.7,3249.2,0.20116481]
[1722456904380,6.07636,3250.6,3249.2,0.20116481]
[1722456904586,3.06147776,3250.6,3249.2,0.20116481]
[1722456904750,3.0,3250.6,3249.2,0.20116481]
[1722456905080,3.55421802,3250.6,3249.3,0.52905829]
[1722456905299,3.55421802,3250.6,3249.2,0.20116481]
[1722456905498,6.63060802,3250.6,3248.8,3.07805]
[1722456905865,3.55421802,3250.6,3248.7,2.2998]
[1722456906063,2.49047776,3250.5,3248.6,3.08]
[1722456906262,2.49047776,3250.5,3248.7,0.32157016]
[1722456906263,22.80661,3250.4,3248.7,0.32157016]
[1722456906604,0.06147776,3250.3,3248.7,3.07812]
[1722456906825,3.0,3250.3,3248.8,0.307812]
[1722456906953,3.0,3250.3,3249.1,3.07777]
[1722456907152,3.0,3250.3,3249.2,0.06153159]
[1722456907410,3.0,3250.3,3248.6,1.5]
[1722456907411,3.0,3250.3,3248.9,3.07796]
[1722456907754,3.0,3250.3,3249.0,3.07786]
[1722456907954,3.0,3250.3,3249.1,3.1392416]
[1722456908310,3.0,3250.3,3249.2,0.31392416]
[1722456908816,3.0,3250.3,3248.9,3.07795]
[1722456909301,0.06147776,3250.2,3248.6,3.07818]
[1722456909513,0.06147776,3250.2,3248.5,3.07831]
[1722456909514,0.06147776,3250.2,3248.7,3.07812]
[1722456909728,0.06147776,3250.2,3248.4,3.39998881]
[1722456910016,0.06147776,3250.2,3248.6,3.07824]
[1722456910017,0.30614778,3250.1,3248.6,3.07824]
[1722456910298,0.30614778,3250.1,3248.7,3.07813]
[1722456910518,0.30614778,3250.1,3248.6,3.07824]
[1722456910856,0.30614778,3250.1,3248.5,0.64784988]
[1722456911451,0.34444155,3250.0,3248.5,0.64784988]
[1722456911653,22.1105,3249.9,3248.5,0.64784988]
[1722456911973,3.0,3249.8,3248.2,3.07861]
[1722456912153,19.73,3249.7,3248.3,3.07853]
[1722456912361,19.73,3249.7,3248.4,3.07843]
[1722456912999,19.73,3249.7,3248.5,3.07834]
[1722456913256,19.73,3249.7,3248.7,3.07806]
[1722456913412,19.73,3249.7,3249.2,3.07765]
[1722456913606,19.73,3249.7,3249.2,3.07761]
[1722456913785,19.73,3249.7,3249.3,0.06153435]
[1722456913990,19.73,3249.7,3249.4,3.07748]
[1722456914185,19.73,3249.7,3249.5,0.307748]
[1722456914693,19.73,3249.7,3249.6,3.0773]
[1722456915136,19.73,3249.7,3249.6,4.5773]
[1722456915351,19.73,3249.7,3249.6,3.0773]
[1722456916388,19.73,3249.7,3249.4,3.07745]
[1722456916586,2.4308,3250.8,3248.7,2.4085]
[1722456916830,21.94608,3250.7,3249.6,3.07723]
[1722456917016,2.4308,3250.8,3248.8,0.4216334]
[1722456917017,19.73,3250.6,3249.4,4.57744]
[1722456917217,19.73,3250.6,3249.7,3.07714]
[1722456918051,19.73,3250.6,3249.8,3.07708]
[1722456918332,19.73,3250.6,3249.9,3.07698]
[1722456919044,19.73,3250.6,3249.7,3.07713]
[1722456919187,19.73,3250.6,3249.8,0.307713]
[1722456919825,19.73,3250.6,3249.8,3.384813]
[1722456920230,19.73,3250.6,3249.8,0.307713]
[1722456920437,19.73,3250.6,3248.9,3.07792]
[1722456920597,3.07611,3250.9,3248.9,3.07792]
[1722456920598,2.3086,3250.4,3249.0,3.07785]
[1722456920800,2.3086,3250.4,3249.2,3.07762]
[1722456921032,2.3086,3250.4,3249.3,3.07752]
[1722456921235,2.3086,3250.4,3249.4,0.307752]
[1722456921597,3.0,3250.6,3248.8,4.9996534]
[1722456921598,19.73,3250.7,3249.9,3.07696]
[1722456921802,19.73,3250.8,3250.0,0.06152338]
[1722456922107,19.73,3250.8,3250.1,0.06152215]
[1722456922307,19.73,3250.8,3249.7,3.07712]
[1722456922633,19.73,3250.8,3249.6,3.07729]
[1722456922836,2.2065,3250.7,3249.2,1.5]
[1722456922995,2.3754,3250.5,3248.9,3.07791]
[1722456923201,2.3754,3250.5,3248.8,1.9216334]
[1722456923464,5.3754,3250.5,3249.3,3.07752]
[1722456923760,5.3754,3250.5,3249.1,3.0777]
[1722456923895,2.51054,3250.4,3249.2,0.30777]
[1722456924391,2.51054,3250.4,3248.8,3.4996334]
[1722456924392,2.57201776,3250.4,3248.8,3.4996334]
[1722456924601,3.0,3250.3,3248.8,3.4996334]
[1722456924856,3.0,3250.3,3249.2,3.07761]
[1722456925200,3.0,3250.3,3249.3,3.07756]
[1722456926033,3.0,3250.3,3248.9,3.07788]
[1722456926331,0.55720178,3250.2,3249.0,0.34995134]
[1722456926850,19.73,3250.1,3248.6,0.62907849]
[1722456927001,19.73,3250.1,3249.0,3.07786]
[1722456927198,19.73,3250.1,3248.8,3.07798]
[1722456927545,19.73,3250.1,3248.7,3.07811]
[1722456927546,19.73,3250.1,3248.9,3.07795]
[1722456927997,19.73,3250.1,3249.1,3.07771]
[1722456928196,19.73,3250.1,3249.2,0.307771]
[1722456928539,19.73,3250.1,3249.0,3.07777]
[1722456928710,19.73,3250.1,3249.1,3.07775]
[1722456928917,19.73,3250.1,3248.9,3.07787]
[1722456929113,19.73,3250.1,3249.1,3.07772]
[1722456929323,19.73,3250.1,3249.3,3.07757]
[1722456929642,19.73,3250.1,3249.5,3.07734]
[1722456929803,19.73,3250.1,3249.6,0.06153337]
[1722456930003,19.73,3250.4,3250.3,3.07663]
[1722456930205,19.73,3250.9,3250.5,3.07639]
[1722456930429,19.73,3250.9,3250.6,0.06151642]
[1722456930608,19.73,3250.9,3250.8,3.07616]
[1722456930813,19.73,3250.9,3250.8,6.459936]
[1722456931019,19.73,3251.4,3250.9,3.07606]
[1722456931418,19.73,3251.4,3250.8,0.307616]
[1722456931616,19.73,3251.4,3250.9,3.076]
[1722456931969,19.73,3251.4,3251.0,3.13747651]
[1722456932108,19.73,3251.4,3251.0,0.34971073]
[1722456932439,19.73,3251.4,3251.1,0.05188926]
[1722456932945,19.73,3251.4,3250.8,0.307616]
[1722456933143,19.73,3251.4,3250.1,5.5242]
[1722456933361,19.73,3251.4,3249.9,0.3084]
[1722456933521,19.73,3251.4,3250.9,0.05201479]
[1722456933935,19.73,3251.4,3250.4,3.07651]
[1722456934262,19.73,3251.4,3250.6,3.07635]
[1722456934466,19.73,3251.4,3250.9,3.07602]
[1722456934666,19.73,3251.4,3251.0,3.12792202]
[1722456934841,19.73,3251.4,3251.1,3.07583]
[1722456935049,19.73,3251.4,3251.3,3.07569]
[1722456935277,19.73,3251.9,3251.8,3.07521]
[1722456935439,2.437,3252.5,3251.8,0.05594204]
[1722456935440,19.73,3252.4,3251.8,0.05594204]
[1722456935621,19.73,3252.4,3251.2,1.5]
[1722456935622,19.73,3252.4,3251.5,3.07546]
[1722456935838,19.73,3252.4,3251.6,0.05606752]
[1722456936037,19.73,3252.4,3251.5,3.07544]
[1722456936278,19.73,3252.4,3251.6,0.05606752]
[1722456936448,2.2167,3252.3,3251.6,0.05606752]
[1722456936656,19.73,3252.4,3251.8,3.07521]
[1722456936864,19.73,3252.4,3251.1,1.5]
[1722456936865,19.73,3252.4,3252.0,3.07496]
[1722456937053,19.73,3252.4,3252.1,0.05561735]
[1722456937380,19.73,3252.4,3251.9,3.07511]
[1722456937711,19.73,3252.4,3252.3,6.14948]
[1722456938067,19.73,3252.4,3252.3,6.2049183]
[1722456938440,19.73,3253.5,3252.5,1.5]
[1722456938644,19.73,3253.5,3252.7,3.0743]
[1722456938847,19.73,3253.5,3252.8,0.05502974]
[1722456939554,19.73,3253.5,3252.8,3.0742]
[1722456939859,19.73,3253.5,3252.9,0.05496704]
[1722456940283,19.73,3253.5,3252.9,3.12907704]
[1722456941083,19.73,3253.5,3252.9,0.05496704]
[1722456941583,3.0,3253.4,3252.9,0.05496704]
[1722456941892,3.0,3253.4,3251.9,0.61504]
[1722456941893,19.73,3253.3,3252.5,3.07455]
[1722456942180,19.73,3253.3,3252.7,3.07432]
[1722456942352,19.73,3253.3,3252.6,0.05422887]
[1722456942553,19.73,3253.3,3252.8,0.05417166]
[1722456942772,19.73,3253.3,3252.7,0.05423436]
[1722456942967,19.67589103,3252.7,3251.6,1.5]
[1722456943167,19.67589103,3252.6,3251.6,1.5]
[1722456943379,19.67589103,3252.6,3251.8,3.07513]
[1722456943599,19.67589103,3252.6,3251.7,3.07525]
[1722456943883,19.67589103,3252.6,3251.8,0.05298788]
[1722456944055,2.2113291,3252.5,3251.3,6.15568]
[1722456944250,2.2113291,3252.5,3251.5,3.07541]
[1722456944444,19.67589103,3252.6,3252.0,3.07495]
[1722456944703,19.67589103,3252.6,3252.2,3.07477]
[1722456944845,19.67589103,3252.6,3252.3,0.05280336]
[1722456945044,19.67589103,3252.6,3252.0,3.07502]
[1722456945298,19.67589103,3252.6,3252.1,0.0529288]
[1722456945456,19.67589103,3252.6,3252.3,3.07468]
[1722456945661,19.67589103,3252.6,3252.4,0.05276988]
[1722456945882,19.67589103,3252.5,3252.3,3.07472]
[1722456946045,19.67589103,3252.5,3252.4,3.12741988]
[1722456946849,19.67589103,3252.5,3252.4,0.05276988]
[1722456947410,19.67589103,3252.5,3252.4,6.20206988]
[1722456947624,19.67589103,3252.5,3252.4,6.54609836]
[1722456947779,19.67589103,3252.5,3252.4,3.47144836]
[1722456948124,19.67589103,3252.5,3252.4,6.54609836]
[1722456948471,19.67589103,3252.5,3252.4,9.62074836]
[1722456948995,7.47,3255.0,3253.5,3.07361]
[1722456948996,17.35989103,3253.6,3253.5,3.07361]
[1722456949197,17.35989103,3253.6,3253.5,3.380971]
[1722456949501,17.35989103,3253.6,3253.5,0.35923423]
[1722456949702,17.35989103,3253.6,3253.5,3.12548323]
[1722456949871,17.35989103,3253.6,3253.5,0.05187323]
[1722456951467,17.35989103,3253.6,3253.5,0.05170523]
[1722456951806,17.35989103,3253.6,3252.7,1.5]
[1722456952113,2.3862,3254.4,3253.3,3.07378]
[1722456952114,17.35989103,3253.5,3253.3,3.07378]
[1722456952340,17.35989103,3253.5,3253.4,0.307378]
[1722456952678,17.35989103,3253.5,3253.4,3.4328459]
[1722456953083,17.35989103,3253.5,3253.4,0.3591459]
[1722456953295,17.35989103,3253.5,3253.4,3.4328459]
[1722456954189,17.35989103,3253.5,3253.4,6.5065459]
[1722456954417,17.35989103,3253.5,3253.4,3.4328459]
[1722456954715,17.35989103,3253.5,3253.4,6.5065459]
[1722456955291,17.35989103,3253.5,3253.4,9.5802459]
[1722456955494,17.35989103,3254.3,3254.1,3.07303]
[1722456955725,17.35989103,3254.2,3254.1,3.687649]
[1722456956043,17.35989103,3254.2,3254.1,3.07304]
[1722456956241,17.35989103,3254.2,3253.9,3.07316]
[1722456956517,17.35989103,3254.2,3253.7,3.07337]
[1722456957116,17.35989103,3254.2,3253.5,3.07356]
[1722456957297,17.35989103,3254.2,3253.7,3.07334]
[1722456957496,17.35989103,3254.2,3253.8,0.307334]
[1722456957717,17.35989103,3254.2,3253.9,3.07323]
[1722456957917,17.35989103,3254.2,3253.8,0.307334]
[1722456958424,17.35989103,3254.2,3253.3,3.07376]
[1722456958602,19.65979103,3254.1,3252.4,1.84402848]
[1722456958787,17.35989103,3254.0,3253.4,0.05120075]
[1722456958985,17.35989103,3253.9,3253.2,3.07382]
[1722456959318,17.35989103,3253.9,3253.0,0.06146169]
[1722456959319,17.35989103,3253.9,3253.3,3.12499342]
[1722456959518,17.35989103,3253.9,3253.3,0.36376276]
[1722456959683,17.35989103,3253.9,3253.3,0.05126342]
[1722456959880,17.35989103,3253.9,3253.2,3.07389]
[1722456960119,17.35989103,3253.9,3253.3,0.05126342]
[1722456960481,17.35989103,3253.9,3252.4,3.41865848]
[1722456960482,17.35989103,3253.9,3252.4,3.41864848]
[1722456960683,17.35989103,3253.8,3252.7,3.07435]
[1722456960884,17.35989103,3253.8,3252.8,0.35901186]
[1722456961090,17.35989103,3253.8,3253.1,3.07392]
[1722456961288,17.35989103,3253.7,3253.2,0.0514648]
[1722456961533,17.35989103,3253.7,3252.8,3.381685]
[1722456961687,17.35989103,3253.7,3253.3,0.05140699]
[1722456961886,17.35989103,3253.7,3252.8,0.307435]
[1722456962124,17.35989103,3253.7,3252.9,0.0516918]
[1722456962528,17.35989103,3253.7,3252.5,3.07455]
[1722456962817,17.35989103,3253.7,3252.6,0.0518799]
[1722456963033,17.35989103,3253.7,3252.7,3.07429]
[1722456963234,17.35989103,3253.7,3253.1,3.07391]
[1722456963449,17.35989103,3253.7,3253.2,3.49424936]
[1722456963612,17.35989103,3253.7,3253.4,3.07362]
[1722456963819,17.35989103,3253.7,3253.6,3.07351]
[1722456964065,17.35989103,3253.7,3253.6,3.12480686]
[1722456964370,17.35989103,3253.7,3253.6,0.05129686]
[1722456964652,17.35989103,3253.7,3253.2,3.381231]
[1722456964957,17.35989103,3253.7,3253.3,0.69700054]
[1722456965250,17.35989103,3253.7,3253.6,6.14702]
[1722456965414,17.35989103,3254.6,3253.6,0.05129442]
[1722456965613,2.3586,3254.7,3253.6,3.07345]
[1722456965614,17.35989103,3254.5,3253.6,3.07345]
[1722456965866,17.35989103,3254.5,3253.7,0.05108817]
[1722456966051,17.35989103,3254.5,3254.0,3.07308]
[1722456966273,17.35989103,3254.5,3254.1,0.05083755]
[1722456966477,17.35989103,3254.5,3253.8,4.88569382]
[1722456966676,17.35989103,3254.5,3254.1,3.07295]
[1722456966822,17.35989103,3254.5,3254.2,0.05068245]
[1722456967025,17.35989103,3254.5,3254.3,0.31236325]
[1722456967233,2.3935,3255.3,3254.3,0.31236325]
[1722456967234,17.35989103,3254.4,3254.3,0.31236325]
[1722456967746,17.35989103,3254.4,3254.0,3.07308]
[1722456968127,17.35989103,3254.4,3253.9,3.07316]
[1722456968323,17.35989103,3254.4,3253.8,0.31245382]
[1722456968576,2.2605,3254.3,3253.8,0.31245382]
[1722456968859,17.35989103,3254.4,3253.6,3.07345]
[1722456969067,17.35989103,3254.3,3253.4,3.07364]
[1722456969248,17.35989103,3254.3,3253.6,3.0735]
[1722456969448,17.35989103,3254.3,3253.6,3.07343]
[1722456969664,17.35989103,3254.3,3253.2,3.07384]
[1722456969961,17.35989103,3254.3,3254.0,3.07313]
[1722456970177,19.79469103,3255.6,3254.2,3.07287]
[1722456970379,17.35989103,3255.5,3254.0,4.5731]
[1722456970559,17.35989103,3255.5,3254.4,3.07275]
[1722456970731,19.33936013,3255.5,3254.4,0.614569]
[1722456970932,19.33936013,3255.5,3254.3,3.07279]
[1722456971268,19.33936013,3255.5,3254.3,6.14556]
[1722456971467,19.33936013,3255.5,3254.1,3.073]
[1722456971673,19.33936013,3255.5,3254.2,3.07286]
[1722456972237,19.33936013,3255.5,3254.0,4.57311]
[1722456972238,0.06147776,3255.4,3253.7,3.07341]
[1722456972538,1.94008379,3255.3,3254.1,3.07298]
[1722456972790,19.33936013,3255.5,3254.2,0.06143823]
[1722456972791,17.35989103,3255.5,3254.2,0.06143823]
[1722456972993,17.35989103,3255.5,3254.2,3.07289]
[1722456973282,17.35989103,3255.5,3254.3,3.07284]
[1722456973454,17.35989103,3255.5,3254.4,0.05056447]
[1722456974482,17.35989103,3255.4,3254.4,0.05056447]
[1722456974640,17.35989103,3255.4,3254.5,0.31234045]
[1722456974836,17.35989103,3255.4,3254.6,0.11187425]
[1722456975036,17.35989103,3255.4,3254.6,3.18443425]
[1722456975363,17.35989103,3255.4,3254.6,0.0504392]
[1722456976640,17.35989103,3255.4,3254.6,0.39398617]
[1722456976841,17.35989103,3255.4,3254.3,3.07279]
[1722456977046,17.35989103,3255.4,3254.4,3.18453475]
[1722456977275,17.35989103,3255.4,3254.5,3.13403246]
[1722456977510,17.35989103,3255.3,3254.6,3.12284353]
[1722456977717,17.35989103,3255.3,3254.7,3.53474435]
[1722456977910,17.35989103,3255.3,3254.8,0.05015828]
[1722456978123,17.35989103,3255.3,3254.7,3.53475435]
[1722456978299,17.35989103,3255.3,3254.8,3.12228285]
[1722456979147,17.35989103,3255.3,3254.8,3.12227285]
[1722456979310,17.35989103,3255.3,3254.9,0.35845572]
[1722456979510,17.35989103,3255.2,3255.0,0.04977762]
[1722456983425,17.35989103,3255.1,3255.0,0.04977762]
[1722456983652,17.35989103,3255.1,3254.7,0.46228435]
[1722456983805,17.35989103,3255.1,3254.0,1.5]
[1722456984158,17.35989103,3255.0,3254.2,3.07293]
[1722456984458,17.35989103,3255.0,3254.1,0.04689429]
[1722456984703,17.35989103,3255.0,3254.3,0.04677386]
[1722456984957,17.35989103,3255.0,3254.3,3.07284]
[1722456985109,17.35989103,3255.0,3254.4,0.614573]
[1722456985310,17.35989103,3255.0,3254.5,0.04671425]
[1722456986157,17.35989103,3255.0,3254.4,3.0727]
[1722456986461,17.35989103,3255.0,3254.7,3.07247]
[1722456986641,17.35989103,3255.0,3254.5,3.13409936]
[1722456986642,17.35989103,3254.9,3254.8,0.06143663]
[1722456986846,17.35989103,3254.9,3254.8,0.04652638]
[1722456987053,17.35989103,3254.9,3254.8,0.3180434]
[1722456987381,17.35989103,3254.9,3254.8,0.36456978]
[1722456987957,17.35989103,3254.9,3254.8,0.04652638]
[1722456988377,17.35989103,3254.9,3253.8,4.807341]
[1722456988378,17.35989103,3254.9,3254.0,3.07307]
[1722456988516,17.35989103,3254.8,3254.1,3.55]
[1722456988868,17.35989103,3254.8,3254.5,3.07266]
[1722456989010,17.35989103,3254.8,3254.6,0.04662001]
[1722456989215,17.35989103,3254.8,3254.3,3.07277]
[1722456989423,17.35989103,3254.8,3254.4,0.50402227]
[1722456990192,17.35989103,3254.8,3254.7,3.07247]
[1722456990520,17.35989103,3254.8,3254.7,3.11904197]
[1722456991436,17.35989103,3254.8,3254.7,3.18047895]
[1722456993739,17.35989103,3254.8,3254.7,6.25294895]
[1722456993939,17.35989103,3254.8,3254.7,7.63324385]
[1722456994316,7.47,3256.9,3255.1,1.5]
[1722456994317,0.05989103,3256.2,3255.1,1.5]
[1722456994530,0.05989103,3256.4,3256.1,3.07115]
[1722456994725,0.05989103,3256.3,3256.2,3.17798029]
[1722456995057,2.2833,3257.1,3256.2,3.17798029]
[1722456995058,0.05989103,3257.0,3256.5,3.07073]
[1722456995352,0.05989103,3257.0,3256.9,3.0704]
[1722456995650,0.05989103,3257.6,3256.9,0.10639663]
[1722456995857,0.05989103,3257.6,3256.9,0.04500551]
[1722456996352,0.05989103,3257.6,3257.0,0.04494298]
[1722456996514,0.2343191,3257.5,3257.0,0.04494298]
[1722456996715,0.2343191,3257.5,3256.7,3.07058]
[1722456996916,0.05989103,3257.6,3256.7,3.07058]
[1722456996917,0.05989103,3257.6,3256.9,3.0704]
[1722456997124,0.05989103,3257.6,3257.0,0.10633509]
[1722456997331,0.05989103,3257.5,3257.0,3.17663509]
[1722456997622,0.05989103,3257.5,3257.2,3.07006]
[1722456997816,0.05989103,3257.5,3257.3,0.06138337]
[1722456998021,0.05989103,3257.5,3257.3,0.10613876]
[1722456998223,0.05989103,3257.5,3257.4,3.06993]
[1722456998457,0.05989103,3257.5,3257.4,0.04469287]
[1722456998665,0.05989103,3257.5,3257.4,3.11462287]
[1722456998819,0.05989103,3257.5,3257.4,0.04469287]
[1722457000189,0.05989103,3257.5,3256.9,3.0]
[1722457000339,2.41219103,3257.5,3257.4,0.04425065]
[1722457000695,2.41219103,3257.5,3256.1,1.5]
[1722457000696,2.41219103,3257.5,3256.4,3.07085]
[1722457000849,2.41219103,3257.5,3256.4,0.307085]
[1722457000850,2.65341013,3257.5,3256.4,0.307085]
[1722457001034,2.65341013,3257.5,3256.5,0.04487906]
[1722457001382,0.05989103,3257.4,3256.5,0.04487906]
[1722457001695,0.05989103,3257.4,3255.7,1.5]
[1722457001843,2.5935191,3257.5,3256.0,3.07118]
[1722457001844,0.05989103,3257.3,3256.0,3.07118]
[1722457002041,0.32523204,3257.3,3256.1,5.22791809]
[1722457002273,0.05989103,3257.3,3256.2,3.13238936]
[1722457002609,0.05989103,3257.3,3256.4,3.07081]
[1722457002770,2.3523,3257.5,3256.4,3.07081]
[1722457002771,0.05989103,3257.4,3256.6,4.57066]
[1722457003114,0.05989103,3257.3,3256.7,0.04475881]
[1722457003399,0.05989103,3257.3,3256.6,3.07062]
[1722457003682,0.05989103,3257.2,3256.7,0.04475881]
[1722457003904,0.05989103,3257.2,3256.2,3.07105]
[1722457004099,0.05989103,3257.2,3256.4,3.07087]
[1722457004483,0.05989103,3257.2,3256.5,0.04488391]
[1722457005048,0.05989103,3257.2,3256.2,4.57105]
[1722457005254,0.05989103,3257.2,3256.4,3.0708]
[1722457005504,0.05989103,3257.2,3256.5,0.04488391]
[1722457005793,0.05989103,3257.4,3256.9,3.07034]
[1722457006084,0.05989103,3257.4,3257.0,0.10575731]
[1722457006283,0.05989103,3257.4,3257.1,3.38776573]
[1722457006462,0.05989103,3257.4,3257.2,0.10562745]
[1722457006663,0.05989103,3257.4,3257.3,0.06138553]
[1722457006866,0.05989103,3257.8,3257.3,0.10551879]
[1722457008187,0.05989103,3257.8,3257.3,0.04413326]
[1722457008513,0.05989103,3257.8,3256.9,3.0704]
[1722457008514,0.31448693,3257.8,3256.9,3.0704]
[1722457008693,0.05989103,3257.8,3257.0,0.04426741]
[1722457009384,0.05989103,3257.8,3257.0,3.11455741]
[1722457009685,0.05989103,3257.8,3257.0,0.04426741]
[1722457009886,0.05989103,3257.8,3257.0,3.11455741]
[1722457010392,0.05989103,3257.7,3257.1,3.0702]
[1722457010693,0.05989103,3257.7,3257.2,0.35558908]
[1722457011058,0.05989103,3257.7,3257.3,0.06138404]
[1722457011362,0.05989103,3257.7,3257.4,0.0440173]
[1722457011892,0.05989103,3257.7,3256.9,3.07038]
[1722457012066,0.05989103,3257.7,3257.0,0.59426741]
[1722457012468,0.05989103,3257.7,3257.1,0.36646474]
[1722457012683,0.05989103,3257.7,3257.2,0.04414234]
[1722457013363,0.05989103,3257.7,3256.8,3.07044]
[1722457013557,0.05989103,3257.7,3256.9,0.04432994]
[1722457013960,0.05989103,3257.7,3256.4,3.07087]
[1722457014165,0.05989103,3257.6,3257.0,0.04426741]
[1722457014363,0.05989103,3257.6,3256.7,0.06139338]
[1722457014564,0.05989103,3257.6,3256.4,6.598727]
[1722457014788,0.05989103,3257.6,3256.6,3.07068]
[1722457015193,0.05989103,3257.6,3256.7,0.04445503]
[1722457015402,0.05989103,3257.6,3256.8,0.06139342]
[1722457015918,0.05989103,3257.6,3256.9,0.04432994]
[1722457016417,0.05989103,3257.6,3257.0,0.06139346]
[1722457016715,2.4717,3257.4,3257.0,0.04426741]
[1722457016924,2.4717,3257.4,3255.8,4.5]
[1722457016925,0.2531591,3257.3,3255.8,4.5]
[1722457017280,2.4608,3257.1,3255.9,0.04491181]
[1722457017587,2.4608,3257.1,3255.5,3.07165]
[1722457017588,5.52227776,3257.1,3255.5,3.07165]
[1722457017883,0.61810791,3257.0,3255.7,3.07152]
[1722457018088,0.61810791,3257.0,3255.8,3.11634439]
[1722457018848,0.05989103,3257.0,3255.9,4.57133]
[1722457018984,0.05989103,3257.0,3256.0,3.07123]
[1722457019184,0.05989103,3257.0,3256.0,0.04499986]
[1722457019500,0.12136879,3257.0,3255.6,0.457165]
[1722457019692,0.55821688,3256.9,3255.7,0.3980711]
[1722457019887,2.3106,3256.8,3255.7,0.0451876]
[1722457020094,2.3106,3256.8,3255.4,6.07181]
[1722457020326,2.3106,3256.5,3255.5,0.04531277]
[1722457020487,0.05989103,3256.4,3254.4,3.90438229]
[1722457020685,0.05989103,3256.3,3255.2,0.04550057]
[1722457021421,2.4499,3256.2,3255.2,0.04550057]
[1722457021800,2.4499,3256.2,3255.3,0.06142519]
[1722457021996,2.4499,3256.2,3255.4,3.07173]
[1722457022223,2.4499,3256.2,3255.5,0.06141896]
[1722457022397,0.05989103,3256.3,3255.5,0.06141896]
[1722457022398,0.05989103,3256.3,3255.6,3.07155]
[1722457022602,0.05989103,3256.2,3255.8,3.07144]
[1722457022800,0.05989103,3256.2,3255.7,0.37924071]
[1722457022801,0.05989103,3256.1,3256.0,3.07125]
[1722457023000,0.05989103,3256.1,3256.0,6.20388933]
[1722457023200,0.05989103,3256.1,3256.0,6.24888919]
[1722457023520,0.05989103,3256.1,3256.0,6.79888919]
[1722457023688,0.05989103,3256.1,3256.0,0.72488878]
[1722457023888,0.05989103,3256.1,3256.0,0.04499986]
[1722457024099,0.05989103,3256.1,3255.7,4.88929817]
[1722457024349,0.05989103,3256.1,3255.8,0.04363709]
[1722457024505,0.05989103,3256.1,3255.2,3.07198]
[1722457024691,0.05989103,3256.1,3255.3,0.04395005]
[1722457024913,0.05989103,3256.1,3255.3,0.311597]
[1722457025112,0.05989103,3256.1,3255.4,0.04388745]
[1722457025437,0.05989103,3256.1,3255.4,3.11568745]
[1722457025726,0.05989103,3256.1,3255.7,3.07152]
[1722457025923,0.05989103,3256.1,3255.5,3.13312871]
[1722457025924,0.05989103,3256.1,3255.8,0.1050487]
[1722457026330,0.05989103,3256.1,3255.8,0.42270957]
[1722457026834,0.05989103,3256.1,3256.0,3.07125]
[1722457027197,0.05989103,3256.1,3256.0,0.04351194]
[1722457027958,0.05989103,3256.1,3255.6,3.0716]
[1722457028243,0.05989103,3256.1,3255.7,0.04369967]
[1722457028588,0.05989103,3256.1,3256.0,3.07125]
[1722457028791,0.05989103,3256.1,3256.0,0.77040018]
[1722457029031,0.05989103,3256.1,3256.0,3.11476194]
[1722457029344,0.05989103,3256.1,3256.0,0.04351194]
[1722457029643,0.05989103,3256.1,3254.5,3.07264]
[1722457029644,0.05989103,3256.1,3255.3,6.383507]
[1722457029861,0.05989103,3256.1,3256.0,0.04370874]
[1722457030323,2.47999103,3256.1,3254.8,3.07238]
[1722457030528,0.05989103,3256.0,3254.9,0.96588228]
[1722457030703,0.05989103,3256.0,3254.9,0.04439728]